Cogmind - Beta 14 @@@ ROGUE MODE // 2025.04.25 @ 16:02:42 Player: Kate+Gabe4evr Result: Destroyed by G-34 Mercenary with Small Laser Performance ------------- Evolutions (0) 0 Regions Visited (1) 200 Robots Destroyed (5) 25 Value Destroyed (121) 121 Prototype IDs (0) 0 Alien Tech Used (0) 0 Bonus (0) 0 TOTAL SCORE: 346 Bonus ------- None Cogmind --------- Core Integrity 0/250 Matter 300/300 Energy 100/100 System Corruption 0% Temperature Cool (6) Movement Core (100) Ox1 Location -10/Materials Parts ------- > --- POWER (1) -------- (None) > --- PROPULSION (2) --- (None) > --- UTILITY (2) ------ Small Storage Unit > --- WEAPON (2) ------- (None) > --- INVENTORY (8) ---- Ion Engine Light Ion Engine Light Nuclear Core Light Treads Light Treads EM Pulse Gun Beam Cannon Grenade Launcher Peak State ------------ > --- POWER ------------ Ion Engine > --- PROPULSION ------- Aluminum Leg Aluminum Leg > --- UTILITY ---------- Small Storage Unit > --- WEAPON ----------- EM Pulse Gun Light Assault Rifle > --- INVENTORY -------- Light Ion Engine Light Treads Light Treads [Rating: 6] Favorites ----------- Power Ion Engine Engine Ion Engine Propulsion Aluminum Leg Leg Aluminum Leg Utility Small Storage Unit Storage Small Storage Unit Weapon Light Assault Rifle Energy Gun EM Pulse Gun Energy Cannon Beam Cannon Ballistic Gun Light Assault Rifle Build | -11 -10 ------- Run | Yrd Mat Slots Evolved . | . . Power . | . . Propulsion . | . . Utility . | . . Weapon . | . . Parts Attached 8 | 6 2 Power 2 | 1 1 Engine 2 | 1 1 Core . | . . Reactor . | . . Propulsion 2 | 2 . Treads . | . . Leg 2 | 2 . Wheel . | . . Hover . | . . Flight . | . . Utility 1 | 1 . Device . | . . Storage 1 | 1 . Processor . | . . Hackware . | . . Protection . | . . Artifact . | . . Weapon 3 | 2 1 Energy Gun 1 | 1 . Energy Cannon 1 | . 1 Ballistic Gun 1 | 1 . Ballistic Cannon . | . . Launcher . | . . Special Weapon . | . . Impact Weapon . | . . Slashing Weapon . | . . Piercing Weapon . | . . Special Melee Weapon . | . . Unidentified Prototypes . | . . Parts Lost 4 | . 4 Power 1 | . 1 Propulsion 2 | . 2 Utility . | . . Weapon 1 | . 1 Highest Loss Streak 4 | . 4 To Critical Strikes . | . . Average Slot Usage (%) 74 | . 74 Engine 12 | . 12 Leg 26 | . 26 Storage 14 | . 14 Energy Gun 6 | . 6 Energy Cannon 2 | . 2 Ballistic Gun 12 | . 12 Peak Build Rating 6 | 6 6 Average Rating 5 | 4 5 On Entrance 3 | . 6 Naked Turns . | . . Heaviest Build 14 | 13 14 Greatest Support 20 | 20 20 Greatest Overweight (x) 1 | . 1 Average Overweight (x) . | . . Largest Inventory Capacity 8 | 8 8 Average Capacity 7 | 6 8 Most Carried 8 | 3 8 Average Carried 4 | 1 5 Final Capacity 8 | 8 8 Final Carried 8 | 3 8 Class Distribution -------------------- 100% | Mutant Dominant Class ---------------- Mutant | -10/Materials Resources | -11 -10 ----------- Run | Yrd Mat Matter Collected 298 | 224 74 Remotely . | . . Salvage Created 123 | . 123 Parts 11 | . 11 Haulers Intercepted . | . . Recyclers Shooed . | . . Parts Field Recycled . | . . Retrieved Matter . | . . Parts Self-Destructed . | . . Prevented . | . . Kills | -11 -10 ------- Run | Yrd Mat Combat Hostiles Destroyed 5 | . 5 Guns 5 | . 5 Classes Destroyed 2 | . 2 Swarmer 3 | . 3 Grunt 2 | . 2 Best Kill Streak 3 | . 3 Combat Bots Only 3 | . 3 Max Kills in Single Turn 1 | . 1 Gunslinging . | . . Exploded . | . . Melee . | . . Uniques/NPCs Destroyed . | . . Combat | -11 -10 -------- Run | Yrd Mat Hostile Shots Fired 85 | . 85 Missed 19 | . 19 Damage Taken 738 | . 738 Core 252 | . 252 Absorbed by Shields . | . . Core Remaining (%) 100 | 100 . Volleys Fired 18 | . 18 Largest 2 | . 2 Hottest 80 | . 80 Shots Fired 36 | . 36 Gun 24 | . 24 Cannon 12 | . 12 Launcher . | . . Special . | . . Kinetic 18 | . 18 Thermal 12 | . 12 Explosive . | . . Electromagnetic 6 | . 6 Robot Hit Streak 5 | . 5 Robot Miss Streak 3 | . 3 Penetration Max . | . . Secondary Targets 2 | . 2 Max Gunslinging Chain 1 | . 1 Shots Hit Robots 22 | . 22 Core Hits 12 | . 12 Critical Kills . | . . Critical Parts Destroyed . | . . Critical Strikes 1 | . 1 Corrupt 1 | . 1 Melee Attacks . | . . Impact . | . . Slashing . | . . Piercing . | . . Sneak Attacks . | . . Combat Hostiles . | . . Follow-up Attacks . | . . Damage Inflicted 288 | . 288 Guns 122 | . 122 Cannons 124 | . 124 Explosions . | . . Melee . | . . Ramming 42 | . 42 Kinetic 90 | . 90 Thermal 124 | . 124 Explosive . | . . Electromagnetic 32 | . 32 Impact . | . . Slashing . | . . Piercing . | . . Highest Corruption . | . . Average Corruption . | . . Corruption Purged . | . . Corruption Blocked . | . . Overload Shots . | . . Overflow Damage . | . . Projectiles . | . . Explosions . | . . Melee . | . . Knockbacks . | . . Impact . | . . Kinetic . | . . Secondary . | . . Self-Inflicted Damage 10 | . 10 Shots . | . . Rammed 9 | . 9 Targets Rammed 23 | . 23 Kicked 14 | . 14 Crushed . | . . Highest Temperature 423 | . 423 Average Temperature 167 | . 167 Received Heat Transfer 357 | . 357 Effects 2 | . 2 Interference 1 | . 1 Short Circuit 1 | . 1 Siege Activations . | . . Robots Corrupted . | . . Combat Hostiles . | . . Parts Fried . | . . Impact Corruptions . | . . Robots Melted . | . . Combat Hostiles . | . . Parts Melted 1 | . 1 Heat Transferred 259 | . 259 Parts Sabotaged . | . . Parts Stolen . | . . Parts Stripped . | . . Power Chain Reactions . | . . Alert | -11 -10 ------- Run | Yrd Mat Peak Influence 165 | . 165 Initial . | . . Average 67 | . 97 Maximum Alert Level . | . . Low Security (%) 100 | 100 100 Level 1 . | . . Level 2 . | . . Level 3 . | . . Level 4 . | . . Level 5 . | . . High Security . | . . Max Security . | . . Squads Dispatched 2 | . 2 Investigation 1 | . 1 Extermination . | . . Reinforcement 1 | . 1 Assault . | . . Garrison . | . . Intercept . | . . Searches Triggered . | . . Construction Impeded . | . . Haulers Reinforced . | . . Active Scanning Responses . | . . Cargo Convoy Interrupts . | . . Stealth | -11 -10 --------- Run | Yrd Mat Distress Signals 4 | . 4 Communications Jammed . | . . Distress Signals . | . . Times Spotted 16 | . 16 Peak Tracking Total 8 | . 8 Tactical Retreats . | . . Traps | -11 -10 ------- Run | Yrd Mat Traps Triggered 1 | . 1 Indirectly . | . . Trap Hack Attempts . | . . Triggered . | . . Disarmed . | . . Reprogrammed . | . . Reused . | . . Traps Extracted . | . . Installed . | . . Triggered . | . . Machines | -11 -10 ---------- Run | Yrd Mat Machines Disabled 1 | . 1 Max in Single Turn 1 | . 1 Machines Repaired . | . . Machines Dismantled . | . . Machines Sabotaged . | . . Overloaded Fab Kills . | . . Hacking | -11 -10 --------- Run | Yrd Mat Machines Accessed . | . . Terminals . | . . Fabricators . | . . Repair Stations . | . . Recycling Units . | . . Scanalyzers . | . . Garrison Access . | . . Total Hacks . | . . Successful . | . . Failed . | . . Catastrophic . | . . Database Lockouts . | . . Manual . | . . Terminals . | . . Fabricators . | . . Repair Stations . | . . Recycling Units . | . . Scanalyzers . | . . Garrison Access . | . . Terminal Hacks . | . . Fabricator Hacks . | . . Repair Station Hacks . | . . Recycling Unit Hacks . | . . Scanalyzer . | . . Garrison Access Hacks . | . . Unauthorized Hacks . | . . Terminals . | . . Fabricators . | . . Repair Stations . | . . Recycling Units . | . . Scanalyzers . | . . Garrison Access . | . . Data Cores Recovered . | . . Used . | . . Hacking Detections . | . . Full Trace Events . | . . Feedback Events . | . . Feedback Blocked . | . . Robot Schematics Acquired . | . . Robots Built . | . . Authchips . | . . Time . | . . Total Robot Build Rating . | . . Part Schematics Acquired . | . . Parts Built . | . . Authchips . | . . Time . | . . Total Part Build Rating . | . . Parts Repaired . | . . Time . | . . Parts Recycled . | . . Recycled Matter . | . . Retrieved Matter . | . . Retrieved Components . | . . Parts Scanalyzed . | . . Part Schematics Acquired . | . . Parts Damaged . | . . Bothacking | -11 -10 ------------ Run | Yrd Mat Used RIF Installer . | . . Robots Hacked . | . . Non-combat . | . . Combat . | . . Robot Hacks Applied . | . . Relay Couplers Released . | . . Fabnet Peak Effective % . | . . Robots Rewired . | . . Allies Hacked . | . . Hacks Repelled . | . . Allies | -11 -10 -------- Run | Yrd Mat Total Allies . | . . Largest Group . | . . Highest-Rated Group . | . . Highest-Rated Ally . | . . Total Orders . | . . Ally Attacks . | . . Total Damage . | . . Kills . | . . Allies Corrupted . | . . Allies Melted . | . . Intel | -11 -10 ------- Run | Yrd Mat Robot Analysis Total . | . . Derelict Logs Recovered . | . . Drone Launches . | . . Drone Recoveries . | . . Exploration | -11 -10 ------------- Run | Yrd Mat Turns Passed 308 | 97 211 Spaces Moved 180 | 73 107 Core 7 | 2 5 Treads . | . . Legs 173 | 71 102 Wheels . | . . Hover . | . . Flight . | . . Fastest Speed 50 | 50 100 Average Speed 118 | 118 119 Slowest Speed 120 | 120 120 Overloaded Moves . | . . Propulsion Burnouts . | . . Robots Hopped . | . . Cave-ins Triggered . | . . Exploration Rate (%) 21 | 4 38 Regions Visited 1 Branch Regions . Pre-discovered Areas . | . . Known Exits Taken . | . . Unknown Exits Taken 1 | 1 . Scrap Searched . | . . Spaces Dug . | . . Terrain Destroyed . | . . Melee . | . . Projectile . | . . AOE . | . . Terrain Rammed . | . . Walls Destroyed . | . . Machines Disabled . | . . Actions | -11 -10 --------- Run | Yrd Mat Total 236 | 81 155 Wait 1 | . 1 Move 179 | 72 107 Hop . | . . Pick Up 5 | 3 2 Fast Attach 7 | 6 1 Attach . | . . Detach 2 | . 2 Swap 1 | . 1 Drop . | . . Fire 18 | . 18 Melee . | . . Ram 9 | . 9 Kick 14 | . 14 Crush . | . . Escape Stasis . | . . Rewire . | . . Trap . | . . Miscellaneous . | . . Route ------- -11/Scrapyard -10/Materials (discovered 1 exit: [*Min]) History --------- Turn | Location | Event 16 | -11/Scrapyard | Discovered new exit (range 16) 98 | -11/Scrapyard | Entered Materials 254 | -10/Materials | Discovered new exit (range 11) 292 | -10/Materials | Core integrity fell below 50% 307 | -10/Materials | Build established: Mutant 307 | -10/Materials | Core integrity fell below 20% 309 | -10/Materials | Destroyed by G-34 Mercenary with Small Laser Last Messages --------------- 00290_ Kicked G-34 Mercenary out of the way. 00291_ K-01 Serf cleans the Pressure Siphon. 00291_ Kicked G-34 Mercenary. 00292_ U-05 Engineer works on Pressure Siphon. 00293_ Kicked G-34 Mercenary. 00294_ Kicked G-34 Mercenary out of the way. 00295_ Aluminum Leg destroyed. 00295_ Slammed into G-34 Mercenary. 00295_ K-01 Serf cleans the Pressure Siphon. 00295_ U-05 Engineer works on Pressure Siphon. 00296_ Slammed into G-34 Mercenary. 00297_ U-05 Engineer works on Pressure Siphon. 00298_ Slammed into G-34 Mercenary. 00298_ U-05 Engineer completes Pressure Siphon. 00299_ Slammed into G-34 Mercenary. 00300_ K-01 Serf collects debris. 00304_ Slammed into W-16 Scout. 00306_ Pressure Siphon comes online. 00307_ Slammed into G-34 Mercenary. 00308_ K-01 Serf collects debris. Map ----- +----------------------------------------------------+ | ?????????????????????????????????????????????????? | | ?????????????????????????????????????????????????? | | ?????????????????????????????????????????????????? | | ?????????????????????????????????????????????????? | | ?????????????????????????????????????????????????? | | ?????????????????????????????????????????????????? | | ?????????????????????????????????????????????????? | | ?????????????????????????????????????????????????? | | ?????????????????????????????????????????????????? | | ?????????????????????????????????????????????????? | | ?????????????????????????????????????????????????? | | ?????????????????????????????????????????????????? | | ?????????????????????????????????????????????????? | | ???????????????????????????????????#?????????????? | | ?????????????????????????????????? #????#????????? | | ????????????????????????????????? ??? #????????? | | ???????????????????????????????? ??? ##???????? | | ?????????????????????###########+### #???????? | | ???????????????????### """ #???????? | | ????+??????????????#"" g "T" +???????? | | ????# ?????????????#"T """g% #???????? | | ????# ????????????#"" """ % g ## #???????? | | ????# ???????????### """ %% #??????????????? | | ????? ????????????# """%% #??????????????? | | ??????? ?#########?#%%w g%g #??????????????? | | ?########+## ###%% @g u u #??????????????? | | ?# """ #??????????????? | | ?# < """ u ??????????? | | ?# !!! """k == # """ ?????????? | | # !! ##" "## """ == #??????????????? | | # !! ##" |"! "## = #??????????????? | | / ##"""""""## #??????????????? | | # ########### #??????????????? | | ?# "T" #?????????# #??????????????? | | ?# ###+####???????# #"T"## #??????????????? | | ?# # #???????# #"""#?# ###??????????????? | | ## + "" #???????# ####??? #????????????????? | | # # T" #???????# #?????? #????????????????? | | # # "" #???????# #????????????????????????? | | # #? #???????# #????????????????????????? | | # #? #???????? #????????????????????????? | | %#% #??#####???????? ?????????????????????????? | | %+ #??????????????# ?????????????????????????? | | #% #??????????????# #????????????????????????? | | =# #??????????????# +????????????????????????? | | %# ######?????????# #????????????????????????? | | =+ +?????????# #????????????????????????? | | # ####??????????# #????????????????????????? | | ## #?????????????# #????????????????????????? | | #?????????????# #????????????????????????? | +----------------------------------------------------+ Best States ------------- Heat Dissipation 25 Energy Generation 10 Energy Capacity 250 Matter Stores 300 Matter Capacity 300 Sight Range 16 Terrain Scan Density 10 Evasion (%) 55 Item Schematics ----------------- None Robot Schematics ------------------ None Fabricated ------------ Nothing Alien Tech Used ----------------- None Achievements -------------- None Challenges ------------ None Game ------ Seed MultinovaDefenseCore Manual? 0 Play Time 00:04:15 Cumulative 75.5 hours Start 2025.04.25 @ 16:00:01 End 2025.04.25 @ 16:02:42 Sessions 1 Manual Loads 0 Difficulty Rogue Special Mode None Game No. 148 Rogue 148 Adventurer 0 Explorer 0 Win Type - Total 1 Types 1/0/0/0/0/0/0/0/0 Lore% 58 Gallery% 57 Achievement% 48 Wizard Run 0 Options --------- Layout 0 ASCII 0 Keyboard 1 Movement Numpad Keybinds 0 Fullscreen 2 Font 24/Terminus Map View 76x50 Zoom Use 0% Tactical HUD 1 Map Filters NONE Filters NONE Steam 1 RUN: 40a55aa1-8e0f-4756-b894-7d07a094d1de